bitfinex/quotes_SOLUSD_20251206
["timestamp","ask_amount","ask_price","bid_price","bid_amount"]
[1765047618627,5.84181552,132.8,132.79,8.26]
[1765047621547,15.35176044,132.8,132.79,8.26]
[1765047621862,14.67176044,132.8,132.79,8.26]
[1765047622056,15.36176044,132.8,132.79,8.26]
[1765047622773,9.50994492,132.8,132.79,8.26]
[1765047622943,0.69,132.81,132.79,8.26]
[1765047623144,5.16181552,132.8,132.79,8.26]
[1765047623770,5.85181552,132.8,132.79,8.26]
[1765047624244,10.19994492,132.81,132.79,8.26]
[1765047624445,15.36176044,132.81,132.79,8.96]
[1765047624661,15.36176044,132.81,132.79,8.26]
[1765047624875,0.69,132.8,132.79,8.26]
[1765047625047,5.85181552,132.8,132.79,8.26]
[1765047625249,110.15181552,132.8,132.75,8.80994492]
[1765047625450,5.16181552,132.77,132.76,8.26]
[1765047626167,5.85181552,132.77,132.76,8.26]
[1765047626568,15.36176044,132.77,132.76,8.26]
[1765047630348,14.67176044,132.77,132.76,8.26]
[1765047632579,15.36176044,132.77,132.76,8.26]
[1765047633554,10.19994492,132.77,132.76,8.26]
[1765047633755,0.69,132.77,132.76,8.26]
[1765047636787,18.83620634,132.78,132.76,8.26]
[1765047636958,23.99802186,132.78,132.76,8.96]
[1765047637380,24.68802186,132.78,132.76,8.26]
[1765047637746,0.69,132.77,132.76,8.26]
[1765047639379,24.68802186,132.78,132.76,8.26]
[1765047643165,24.68802186,132.78,132.75,9.50994492]
[1765047643387,24.68802186,132.78,132.76,8.26]
[1765047644081,18.83620634,132.78,132.76,8.96]
[1765047644283,109.46181552,132.79,132.77,0.7]
[1765047644581,126.49462555,132.79,132.77,0.7]
[1765047644785,126.49462555,132.79,132.76,8.96]
[1765047645164,126.49462555,132.79,132.77,0.7]
[1765047646361,126.49462555,132.79,132.78,8.26]
[1765047651201,121.33281003,132.79,132.78,8.26]
[1765047651501,126.49462555,132.79,132.78,8.26]
[1765047658502,121.33281003,132.79,132.78,8.26]
[1765047658674,126.49462555,132.79,132.78,8.26]
[1765047660492,125.80462555,132.79,132.78,8.26]
[1765047660680,104.3,132.79,132.78,8.98]
[1765047661493,105.01,132.79,132.78,8.26]
[1765047661674,104.3,132.79,132.78,8.26]
[1765047662286,112.56,132.79,132.78,8.26]
[1765047662466,113.27,132.79,132.78,8.26]
[1765047663996,112.56,132.79,132.78,8.98]
[1765047664191,104.3,132.79,132.78,8.98]
[1765047664394,104.3,132.79,132.78,8.26]
[1765047665095,118.43181552,132.79,132.78,8.26]
[1765047667593,117.72181552,132.79,132.78,8.26]
[1765047667898,125.96250307,132.79,132.77,8.26]
[1765047668095,5.87181552,132.78,132.77,8.26]
[1765047668480,36.0181243,132.78,132.77,8.26]
[1765047670481,34.16180721,132.78,132.77,8.26]
[1765047671392,33.45180721,132.78,132.77,8.26]
[1765047672106,22.61505408,132.78,132.77,8.26]
[1765047672606,104.3,132.79,132.77,8.98]
[1765047672782,113.10994492,132.79,132.78,0.72]
[1765047673909,113.81994492,132.79,132.77,8.98]
[1765047675206,113.10994492,132.79,132.77,8.98]
[1765047675597,113.10994492,132.79,132.78,0.72]
[1765047675797,113.10994492,132.79,132.77,8.98]
[1765047677591,113.81994492,132.79,132.77,8.98]
[1765047678108,117.12544335,132.79,132.77,8.98]
[1765047678700,117.12544335,132.79,132.77,8.26]
[1765047680013,116.41544335,132.79,132.77,8.95]
[1765047680314,113.10994492,132.79,132.77,8.95]
[1765047680691,113.76994492,132.79,132.77,8.95]
[1765047682719,8.80994492,132.79,132.78,12.80544335]
[1765047682898,8.18735043,132.85,132.78,12.80544335]
[1765047683092,21.06986659,132.85,132.81,8.80994492]
[1765047683288,3.96549843,132.84,132.78,8.80994492]
[1765047683494,3.30549843,132.83,132.79,8.95]
[1765047683696,26.57373536,132.83,132.79,8.95]
[1765047683902,0.66,132.82,132.79,8.95]
[1765047684516,3.96549843,132.82,132.79,8.95]
[1765047685011,3.30549843,132.82,132.79,8.95]
[1765047685215,0.66,132.81,132.79,8.95]
[1765047686933,30.79713068,132.83,132.8,0.69]
[1765047687109,8.18889375,132.83,132.8,0.69]
[1765047687318,20.30666947,132.83,132.8,0.69]
[1765047687513,0.66,132.83,132.8,0.69]
[1765047689005,104.96,132.83,132.8,0.69]
[1765047689417,0.66,132.85,132.81,8.80994492]
[1765047689710,0.66,132.85,132.82,8.26]
[1765047689956,0.66,132.85,132.82,8.95]
[1765047690238,3.96549843,132.86,132.83,9.49994492]
[1765047690524,0.66,132.86,132.83,9.49994492]
[1765047690735,7.89732354,132.87,132.84,0.69]
[1765047690934,7.89732354,132.87,132.85,8.26]
[1765047691105,25.9052197,132.88,132.85,8.26]
[1765047691322,7.89667942,132.89,132.86,0.69]
[1765047691523,19.35212277,132.89,132.86,0.69]
[1765047691757,0.66,132.88,132.86,0.69]
[1765047691935,3.96549843,132.89,132.86,0.69]
[1765047693341,0.66,132.88,132.85,15.78713024]
[1765047693560,0.66,132.88,132.86,8.80994492]
[1765047694056,0.66,132.89,132.86,9.49994492]
[1765047694357,3.30549843,132.89,132.86,9.49994492]
[1765047694537,3.96549843,132.89,132.86,9.49994492]
[1765047695860,3.30549843,132.89,132.86,9.49994492]
[1765047696335,3.96549843,132.89,132.86,9.49994492]
[1765047697045,0.66,132.89,132.86,9.49994492]
[1765047697219,3.96549843,132.89,132.86,9.49994492]
[1765047697829,0.66,132.88,132.86,8.80994492]
[1765047699742,3.96549843,132.88,132.86,8.80994492]
[1765047700924,3.30549843,132.88,132.86,9.49994492]
[1765047701330,0.66,132.88,132.86,9.49994492]
[1765047701542,3.96549843,132.88,132.86,9.49994492]
[1765047702345,3.96549843,132.88,132.87,8.26]
[1765047702749,0.66,132.88,132.87,8.26]
[1765047703238,3.96549843,132.88,132.87,8.26]
[1765047704049,0.66,132.88,132.87,8.26]
[1765047705951,117.76544335,132.89,132.87,8.26]
[1765047706956,0.66,132.88,132.87,8.26]
[1765047707948,3.96549843,132.88,132.87,8.26]
[1765047708550,3.96549843,132.88,132.86,8.80994492]
[1765047708752,3.96549843,132.88,132.87,8.26]
[1765047711079,113.79994492,132.89,132.88,8.80994492]
[1765047711353,104.3,132.89,132.88,9.50994492]
[1765047712147,0.1,132.91,132.88,12.81544335]
[1765047712349,0.1,132.91,132.9,8.80994492]
[1765047713931,0.1,132.91,132.9,9.50994492]
[1765047714351,0.1,132.91,132.9,17.03439939]
[1765047714935,0.1,132.91,132.9,20.33989782]
[1765047716856,0.1,132.91,132.9,23.35137909]
[1765047719638,0.1,132.91,132.9,20.04588066]
[1765047720662,0.1,132.91,132.9,23.35137909]
[1765047721336,0.1,132.91,132.9,20.04588066]
[1765047721847,0.1,132.91,132.9,16.33439939]
[1765047722166,0.1,132.91,132.9,17.03439939]
[1765047723259,0.1,132.91,132.9,20.04588066]
[1765047723461,0.1,132.91,132.9,23.35137909]
[1765047725458,0.1,132.92,132.9,39.66024309]
[1765047725662,0.1,132.92,132.91,21.07544335]
[1765047726862,0.1,132.92,132.91,28.59933169]
[1765047727250,0.1,132.93,132.92,8.80994492]
[1765047727450,0.1,132.93,132.92,12.81544335]
[1765047727653,0.1,132.93,132.92,9.50994492]
[1765047727857,0.1,132.93,132.92,12.81544335]
[1765047728757,0.1,132.93,132.92,20.33876564]
[1765047729473,0.1,132.93,132.92,28.59876564]
[1765047730357,0.1,132.93,132.92,30.44166424]
[1765047735071,0.1,132.93,132.92,24.59326721]
[1765047735270,0.1,132.93,132.92,25.29326721]
[1765047735577,0.1,132.93,132.92,24.59326721]
[1765047735763,0.78,132.93,132.92,24.59326721]
[1765047737480,0.1,132.93,132.92,25.29326721]
[1765047738378,0.1,132.93,132.92,30.44166424]
[1765047743682,0.1,132.93,132.92,22.18166424]
[1765047743877,1e-08,132.93,132.92,30.44166424]
[1765047744055,0.1,132.95,132.94,13.95834195]
[1765047744258,0.1,132.95,132.94,22.97056099]
[1765047744467,0.1,132.95,132.94,23.67056099]
[1765047745375,0.1,132.95,132.94,31.19275145]
[1765047747564,0.1,132.99,132.95,8.80994492]
[1765047747759,0.1,132.99,132.98,13.95834195]
[1765047747964,0.1,132.99,132.98,22.91834195]
[1765047749567,0.1,132.99,132.98,30.43826975]
[1765047749886,0.1,132.99,132.98,29.73826975]
[1765047750066,0.1,132.99,132.98,30.43826975]
[1765047754590,0.1,132.99,132.98,29.73826975]
[1765047755372,0.1,132.99,132.98,30.43826975]
[1765047757476,0.1,132.99,132.98,29.73826975]
[1765047757477,0.82,132.99,132.98,29.73826975]
[1765047758777,0.1,132.99,132.98,29.73826975]
[1765047760392,0.1,132.99,132.98,30.43826975]
[1765047760901,0.1,132.99,132.98,29.73826975]
[1765047762274,0.1,132.99,132.98,30.43826975]
[1765047766097,0.82,132.99,132.98,16.32987272]
[1765047766303,0.82,132.99,132.98,24.58987272]
[1765047767402,0.82,132.99,132.97,7.52036592]
[1765047767582,0.82,132.99,132.96,18.80145008]
[1765047767583,5.96839703,132.99,132.98,8.26]
[1765047768386,5.96839703,132.99,132.97,8.26]
[1765047768588,0.72,132.98,132.97,8.26]
[1765047769480,5.86839703,132.98,132.97,8.26]
[1765047769899,13.38832483,132.98,132.94,7.52208012]
[1765047770181,0.67,132.97,132.96,8.26]
[1765047771292,5.81839703,132.97,132.96,8.26]
[1765047776521,13.33889037,132.97,132.94,8.26]
[1765047776690,5.14839703,132.95,132.94,8.26]
[1765047777086,5.84839703,132.95,132.94,8.26]
[1765047777513,5.84839703,132.95,132.92,7.5232857]
[1765047777514,5.84839703,132.95,132.92,8.80994492]
[1765047777792,5.84839703,132.94,132.93,8.26]
[1765047779492,0.7,132.94,132.93,8.26]
[1765047781217,13.37058749,132.94,132.91,8.26]
[1765047781394,5.14839703,132.93,132.91,8.26]
[1765047781704,5.84839703,132.93,132.91,8.26]
[1765047782015,0.7,132.92,132.91,8.26]
[1765047783704,0.7,132.92,132.9,16.33439868]
[1765047783916,0.7,132.92,132.91,8.26]
[1765047787025,0.7,132.94,132.91,16.44388834]
[1765047787716,0.7,132.96,132.93,5.14839703]
[1765047788018,0.7,132.96,132.94,8.26]
[1765047794126,0.7,132.96,132.94,15.7821557]
[1765047794332,0.7,132.97,132.94,19.73766394]
[1765047794533,0.7,132.97,132.94,15.7821557]
[1765047794828,0.7,132.97,132.94,16.4421557]
[1765047795038,0.7,132.97,132.95,8.80994492]
[1765047795333,0.7,132.97,132.96,8.26]
[1765047798423,3.99550824,132.97,132.96,8.26]
[1765047800067,11.51600158,132.97,132.96,8.26]
[1765047800238,11.51600158,132.97,132.91,20.27925183]
[1765047800438,3.29550824,132.94,132.92,8.26]
[1765047800734,3.29550824,132.95,132.92,8.26]
[1765047800942,0.65,132.94,132.92,8.26]
[1765047801439,0.65,132.94,132.92,16.43322208]
[1765047802538,3.94550824,132.96,132.93,8.80994492]
[1765047802719,0.65,132.96,132.93,9.45994492]
[1765047803318,3.29550824,132.97,132.94,8.17211095]
[1765047803515,3.29550824,132.97,132.95,8.26]
[1765047803516,3.94550824,132.97,132.95,8.26]
[1765047803716,0.65,132.97,132.95,8.26]
[1765047803913,0.65,132.96,132.95,8.26]
[1765047804542,115.11560341,132.98,132.95,8.26]
[1765047804739,0.65,132.97,132.95,8.26]
[1765047805941,3.94550824,132.97,132.95,8.26]
[1765047806328,0.65,132.96,132.95,8.26]
[1765047813352,3.94550824,132.96,132.95,8.26]
[1765047813727,0.65,132.96,132.95,8.26]
[1765047820258,3.29550824,132.97,132.95,24.59156959]
[1765047820444,0.65,132.97,132.95,25.24156959]
[1765047821150,0.65,132.97,132.95,24.59156959]
[1765047824056,3.94550824,132.97,132.95,24.59156959]
[1765047824563,0.65,132.97,132.95,24.59156959]
[1765047827775,0.65,132.97,132.95,25.24156959]
[1765047828001,0.1,132.99,132.96,0.65]
[1765047828290,0.1,132.99,132.97,8.26]
[1765047828455,0.75,132.99,132.97,8.26]
[1765047828788,4.04550824,132.99,132.97,8.26]
[1765047829178,0.65,132.98,132.97,17.06994492]
[1765047829357,0.75,132.99,132.97,17.71994492]
[1765047829546,4.04550824,132.99,132.97,17.71994492]
[1765047829873,0.75,132.99,132.97,17.71994492]
[1765047830372,0.75,132.99,132.97,17.06994492]
[1765047831652,0.75,132.99,132.97,17.75994492]
[1765047832468,4.04550824,132.99,132.97,8.26]
[1765047832974,0.72,132.98,132.97,8.26]
[1765047833172,4.01550824,132.98,132.94,10.81756404]
[1765047833357,4.01550824,132.98,132.95,17.06994492]
[1765047833557,0.72,132.97,132.95,17.06994492]
[1765047833757,0.72,132.97,132.95,17.76994492]
[1765047836357,4.01550824,132.97,132.95,17.76994492]
[1765047836558,0.72,132.97,132.95,17.76994492]
[1765047838771,0.72,132.97,132.95,17.06994492]
[1765047839076,3.29550824,132.96,132.93,7.52257847]
[1765047839291,3.29550824,132.95,132.94,8.26]
[1765047839764,4.01550824,132.95,132.94,8.26]
[1765047840465,35.2081346,132.99,132.95,16.33125552]
[1765047840466,0.82,132.99,132.95,16.33125552]
[1765047840669,0.82,132.99,132.97,8.80994492]
[1765047840670,0.1,132.99,132.97,8.80994492]
[1765047840860,0.1,132.99,132.98,8.26]
[1765047841260,0.1,132.99,132.98,8.96]
[1765047841678,0.1,132.99,132.98,8.26]
[1765047842887,0.82,132.99,132.98,8.26]
[1765047843688,0.1,132.99,132.98,8.26]
[1765047845989,0.82,132.99,132.98,8.26]
[1765047846189,0.1,132.99,132.98,8.26]
[1765047848493,0.82,132.99,132.98,8.26]
[1765047850601,0.1,132.99,132.98,8.26]
[1765047850971,0.82,132.99,132.98,8.26]
[1765047854394,0.1,132.99,132.98,8.26]
[1765047855695,0.82,132.99,132.98,8.26]
[1765047857898,0.1,132.99,132.98,8.26]
[1765047860691,0.79,132.99,132.98,8.26]
[1765047862802,8.30936235,132.99,132.98,8.26]
[1765047863005,13.45645416,132.99,132.98,8.26]
[1765047863207,13.45645416,132.99,132.95,9.47994492]
[1765047863393,5.14709181,132.97,132.96,8.26]
[1765047863709,5.83709181,132.98,132.96,8.26]
[1765047863876,0.69,132.97,132.96,8.26]
[1765047870189,8.21049334,132.97,132.96,8.26]
[1765047870514,13.35758515,132.97,132.96,8.26]
[1765047871601,13.35758515,132.97,132.93,5.14709181]
[1765047871805,0.69,132.96,132.94,8.93]
[1765047872610,29.66644915,132.97,132.94,8.93]
[1765047872810,13.35758515,132.97,132.94,8.93]
[1765047874416,0.69,132.96,132.94,8.93]
[1765047875186,12.66758515,132.97,132.94,8.93]
[1765047875407,8.21049334,132.97,132.94,8.93]
[1765047875692,13.35712684,132.98,132.95,0.67]
[1765047875992,18.99840589,132.99,132.96,13.95703673]
[1765047876199,0.1,132.99,132.97,8.93]
[1765047876387,0.1,132.99,132.98,0.67]
[1765047888715,0.1,132.99,132.98,16.99987272]
[1765047888922,0.1,132.99,132.98,22.14696453]
[1765047893528,0.1,132.99,132.98,16.99987272]
[1765047893732,0.1,132.99,132.98,22.14696453]
[1765047894943,0.1,132.99,132.98,8.80994492]
[1765047895119,0.1,132.99,132.98,9.52994492]
[1765047897038,0.1,132.99,132.98,14.67703673]
[1765047899042,0.1,132.99,132.98,9.52994492]
[1765047899524,0.1,132.99,132.98,8.80994492]
[1765047900438,0.1,132.99,132.97,20.92743437]
[1765047900622,0.81,132.99,132.97,16.50034256]
[1765047900941,0.81,132.99,132.97,8.80994492]
[1765047901142,0.81,132.99,132.98,8.26]
[1765047901337,0.81,132.99,132.97,5.86709181]
[1765047901517,0.81,132.99,132.98,8.26]
[1765047905332,0.1,132.99,132.98,8.26]
[1765047905539,0.81,132.99,132.98,8.26]
[1765047910444,0.81,132.99,132.96,22.19793143]
[1765047910632,0.81,132.99,132.98,8.26]
[1765047913245,0.1,132.99,132.98,8.98]
[1765047914923,0.81,132.99,132.98,8.26]
[1765047915323,0.1,132.99,132.98,25.30987272]
[1765047919631,0.1,132.99,132.98,8.26]
[1765047919832,0.81,132.99,132.98,8.26]
[1765047934776,11.62347393,132.99,132.95,8.22124731]
[1765047934947,11.62347393,132.99,132.96,8.26]
[1765047935184,0.67,132.98,132.96,8.96]
[1765047941077,0.77,132.99,132.96,8.96]
[1765047941280,0.67,132.98,132.96,16.4809653]
[1765047941663,0.67,132.98,132.96,8.2209653]
[1765047941863,0.67,132.98,132.97,8.26]
[1765047946181,0.67,132.98,132.96,8.2209653]
[1765047946380,0.67,132.98,132.97,8.26]
[1765047958391,3.39393683,132.99,132.97,8.26]
[1765047958581,0.75,132.99,132.97,8.26]
[1765047960805,0.75,132.99,132.96,8.2209653]
[1765047960995,0.75,132.99,132.97,8.26]
[1765047964902,4.04393683,132.99,132.97,8.26]
[1765047965604,0.75,132.99,132.97,8.26]
[1765047965797,4.04393683,132.99,132.97,8.26]
[1765047966789,0.75,132.99,132.97,8.26]
[1765047967089,4.04393683,132.99,132.97,8.26]
[1765047969489,12.30393683,132.99,132.97,8.26]
[1765047969685,11.65393683,132.99,132.97,8.26]
[1765047969886,4.04393683,132.99,132.97,8.26]
[1765047970286,8.26,132.98,132.97,8.26]
[1765047971892,8.91,132.98,132.97,8.26]
[1765047972214,8.91,132.98,132.95,8.21144342]
[1765047972386,8.91,132.98,132.97,8.26]
[1765047975232,21.57820415,132.98,132.94,8.80994492]
[1765047975415,5.14818706,132.96,132.94,8.26]
[1765047975820,14.60813198,132.96,132.94,8.26]
[1765047980103,9.45994492,132.96,132.94,8.26]
[1765047980303,14.60813198,132.96,132.94,8.26]
[1765047990040,13.95813198,132.96,132.94,8.26]
[1765047990252,0.66,132.95,132.94,8.26]
[1765047990751,14.61813198,132.96,132.94,8.26]
[1765047995314,14.61813198,132.96,132.94,8.98]
[1765047995566,14.61813198,132.96,132.94,8.26]
[1765047997272,9.46994492,132.96,132.94,8.98]
[1765047997441,14.61813198,132.96,132.94,8.98]
[1765047997856,14.61813198,132.96,132.94,8.26]
[1765047998063,5.14818706,132.95,132.94,8.26]
[1765047998443,21.48075014,132.95,132.94,8.26]
[1765048000383,22.14075014,132.95,132.91,8.2434819]
[1765048000553,5.14818706,132.93,132.92,8.26]
[1765048006477,9.46994492,132.94,132.92,8.26]
[1765048006695,9.46994492,132.94,132.92,8.98]
[1765048006696,14.61813198,132.94,132.92,8.98]
[1765048007494,14.61813198,132.94,132.92,8.26]
[1765048008998,9.46994492,132.94,132.92,8.26]
[1765048009171,8.80994492,132.94,132.92,8.98]
[1765048009471,13.95813198,132.94,132.92,8.98]
[1765048010320,14.62813198,132.94,132.92,8.98]
[1765048012873,14.62813198,132.94,132.92,8.26]
[1765048014795,5.14818706,132.93,132.91,0.66]
[1765048014984,5.80818706,132.93,132.92,8.26]
[1765048015174,22.14248224,132.93,132.92,8.26]
[1765048015577,5.14818706,132.96,132.93,8.80994492]
[1765048015804,5.14818706,132.96,132.94,8.26]
[1765048016100,5.14818706,132.96,132.94,8.92]
[1765048018297,5.80818706,132.96,132.94,8.92]
[1765048019278,5.14818706,132.96,132.94,8.26]
[1765048019486,5.14818706,132.96,132.95,0.66]
[1765048019985,5.14818706,132.96,132.94,8.26]
[1765048020186,5.14818706,132.96,132.94,8.92]
[1765048021496,29.66342825,132.97,132.94,8.92]
[1765048021869,29.66342825,132.97,132.94,8.26]
[1765048022074,116.96830162,132.98,132.95,0.66]
[1765048022286,133.30095713,132.98,132.96,8.26]
[1765048022482,133.96095713,132.98,132.96,8.26]
[1765048022696,133.96095713,132.98,132.96,8.92]
[1765048022906,16.33265551,132.98,132.96,8.26]
[1765048023082,13.427722,132.99,132.97,0.66]
[1765048023280,21.687722,132.99,132.98,8.26]
[1765048023711,21.687722,132.99,132.93,17.06994492]
[1765048024002,5.14818706,132.97,132.95,8.80994492]
[1765048024503,13.32820657,132.98,132.95,9.46994492]
[1765048024882,21.50822608,132.98,132.95,9.46994492]
[1765048027802,20.84822608,132.98,132.95,9.46994492]
[1765048027991,13.32904028,132.97,132.94,9.46994492]
[1765048028184,13.32904028,132.97,132.95,8.26]
[1765048028385,13.32904028,132.97,132.95,8.92]
[1765048030320,13.32815763,132.98,132.96,0.66]
[1765048030600,13.32815763,132.98,132.97,8.26]
[1765048033397,21.58815763,132.98,132.97,8.26]
[1765048034415,19.73516231,132.98,132.97,8.26]
[1765048036206,19.73516231,132.98,132.95,8.26]
[1765048036407,3.29519174,132.96,132.95,8.26]
[1765048036912,3.95519174,132.96,132.94,8.26]
[1765048037108,3.95519174,132.95,132.94,8.26]
[1765048037409,0.66,132.95,132.94,8.26]
[1765048037610,3.95519174,132.95,132.94,8.26]
[1765048037821,3.95519174,132.95,132.92,9.46994492]
[1765048037989,3.95519174,132.95,132.93,8.26]
[1765048040307,3.29519174,132.94,132.93,8.26]
[1765048044333,3.96519174,132.94,132.9,7.5243089]
[1765048044537,0.67,132.94,132.91,17.06994492]
[1765048044836,3.96519174,132.94,132.92,0.67]
[1765048046032,3.29519174,132.95,132.92,0.67]
[1765048046212,3.96519174,132.95,132.92,0.67]
[1765048046622,3.96519174,132.95,132.92,8.19329874]
[1765048046820,3.96519174,132.95,132.93,0.67]
[1765048047022,3.96519174,132.95,132.94,8.26]
[1765048052026,3.29519174,132.95,132.94,8.26]
[1765048053938,11.48574605,132.97,132.94,8.93]
[1765048054134,12.77513666,132.97,132.95,0.67]
[1765048054335,3.96519174,132.97,132.95,0.67]
[1765048054527,3.29519174,132.97,132.95,0.67]
[1765048055915,27.79415877,132.98,132.95,0.67]
[1765048058140,3.29519174,132.97,132.95,0.67]
[1765048058447,3.96519174,132.97,132.95,0.67]
[1765048060150,3.29519174,132.97,132.94,24.5921001]
[1765048060367,17.47595869,132.95,132.82,12.66121834]
[1765048060655,20.4039587,132.83,132.8,0.2]
[1765048060818,20.4039587,132.83,132.73,18.83456611]
[1765048060819,16.308864,132.8,132.69,60.0]
[1765048061151,16.308864,132.75,132.69,9.4070775]
[1765048061352,16.308864,132.67,132.63,0.2]
[1765048061553,16.308864,132.62,132.57,9.4070775]
[1765048061736,3.29519174,132.58,132.57,9.4070775]
[1765048062054,3.29519174,132.58,132.5,3.29519174]
[1765048062260,3.29519174,132.58,132.49,15.8855017]
[1765048062261,3.29519174,132.52,132.49,15.8855017]
[1765048062427,7.90030232,132.52,132.5,0.67]
[1765048062755,24.20916632,132.51,132.47,15.8855017]
[1765048062930,7.90030232,132.5,132.44,7.90030232]
[1765048063126,24.20916632,132.5,132.43,24.2255017]
[1765048063435,16.24030232,132.49,132.43,8.34]
[1765048063629,7.90030232,132.48,132.43,8.34]
[1765048063840,8.34,132.49,132.38,31.00545784]
[1765048064032,24.20916632,132.47,132.41,7.90030232]
[1765048064248,18.86681618,132.51,132.42,8.36]
[1765048064431,7.90030232,132.48,132.42,16.26030232]
[1765048064629,7.90030232,132.46,132.43,0.67]
[1765048064946,7.54716981,132.5,132.43,0.67]
[1765048065145,7.54716981,132.5,132.47,7.90030232]
[1765048065341,7.54716981,132.5,132.43,0.67]
[1765048065530,16.308864,132.49,132.47,7.90030232]
[1765048065730,16.308864,132.49,132.42,8.36]
[1765048065948,16.308864,132.49,132.45,7.90030232]
[1765048066326,16.308864,132.49,132.43,7.5511591]
[1765048066526,8.38,132.48,132.36,16.308864]
[1765048066738,16.308864,132.52,132.47,7.90030232]
[1765048067046,16.308864,132.51,132.46,7.90030232]
[1765048067251,7.90030232,132.48,132.42,7.55169032]
[1765048067558,7.90030232,132.48,132.43,7.90030232]
[1765048067737,16.308864,132.45,132.37,0.67]
[1765048067936,16.308864,132.46,132.43,7.90030232]
[1765048068263,9.05,132.47,132.41,7.90030232]
[1765048068460,32.58916632,132.47,132.41,7.90030232]
[1765048068634,7.90030232,132.45,132.4,7.90030232]
[1765048068975,16.308864,132.45,132.39,15.45374291]
[1765048069175,7.90030232,132.44,132.39,15.45374291]
[1765048069331,7.90030232,132.4,132.35,31.05659397]
[1765048069537,16.978864,132.43,132.35,27.2687875]
[1765048069731,15.44892437,132.48,132.38,15.45422323]
[1765048070042,7.90030232,132.43,132.39,8.38]
[1765048070240,16.308864,132.37,132.32,8.76432084]
[1765048070448,16.308864,132.38,132.34,7.90030232]
[1765048070768,16.308864,132.38,132.32,1.20720712]
[1765048070769,7.90030232,132.36,132.32,1.20720712]
[1765048070938,7.90030232,132.33,132.32,1.20720712]
[1765048071265,17.018864,132.37,132.32,1.20720712]
[1765048071450,7.90030232,132.34,132.32,1.20720712]
[1765048071647,7.90030232,132.33,132.32,1.20720712]
[1765048072054,16.30030232,132.33,132.32,1.20720712]
[1765048072367,7.90030232,132.35,132.32,1.20720712]
[1765048072530,7.90030232,132.34,132.32,1.20720712]
[1765048072731,0.7,132.36,132.32,1.20720712]
[1765048072732,23.85897687,132.33,132.32,1.20720712]
[1765048073348,24.55897687,132.33,132.32,1.20720712]
[1765048073550,23.85897687,132.33,132.32,1.20720712]
[1765048073971,15.95867455,132.33,132.32,1.20720712]
[1765048074887,33.36892179,132.33,132.32,1.20720712]
[1765048075071,24.55897687,132.33,132.32,1.20720712]
[1765048075271,16.308864,132.29,132.24,0.13758985]
[1765048075486,24.728864,132.29,132.24,0.13758985]
[1765048075673,7.90030232,132.26,132.24,0.13758985]
[1765048076084,7.90030232,132.25,132.24,0.13758985]
[1765048076779,7.90030232,132.28,132.24,0.13758985]
[1765048076966,7.90030232,132.27,132.24,0.13758985]
[1765048077170,16.308864,132.28,132.24,0.13758985]
[1765048077377,7.90030232,132.27,132.24,0.13758985]
[1765048077690,24.20916632,132.25,132.24,0.13758985]
[1765048078580,24.20916632,132.26,132.24,0.13758985]
[1765048078757,16.308864,132.26,132.24,0.13758985]
[1765048079401,16.308864,132.25,132.24,0.13758985]
[1765048080270,8.53030232,132.25,132.24,0.13758985]
[1765048080470,25.24054956,132.25,132.24,0.13758985]
[1765048080785,24.83916632,132.25,132.24,0.13758985]
[1765048081199,0.33,132.3,132.24,0.82758985]
[1765048081569,7.90030232,132.28,132.24,0.82758985]
[1765048081784,0.33,132.3,132.24,0.82758985]